fUST/lending_fUST_20241215
["ID","MTS","AMOUNT","RATE_DAILY","PERIOD"]
[345439290,1734258639402,-500.0,0.00028499,7]
[345439291,1734258639412,-500.0,0.00028499,7]
[345439292,1734258639422,-168.61348023,0.00028499,2]
[345439294,1734258639432,-164.58477162,0.00028499,2]
[345439296,1734258639442,-596.23107595,0.00028499,2]
[345439298,1734258639452,-166100.40657272,0.000285,5]
[345439300,1734258639462,-1555.59794542,0.000285,7]
[345439302,1734258639472,-131028.4859686,0.000285,2]
[345439304,1734258639482,-90667.64744322,0.000285,2]
[345440188,1734259015031,-160.0,0.00022,2]
[345440189,1734259015056,-3301.9999991,0.00023,2]
[345440190,1734259091934,163.333526,0.00013973,2]
[345440196,1734259768669,3002.0,0.00015,2]
[345440414,1734259838243,-300.0,0.00025999,2]
[345440415,1734259838253,-300.0,0.00025999,2]
[345440416,1734259838262,-4484.57988562,0.00026,5]
[345440417,1734259838274,-1751.76477178,0.00026,5]
[345440418,1734259838292,-5251.77708219,0.00026,5]
[345440419,1734259838318,-2889.54999778,0.00026,5]
[345440434,1734259838503,-830.59193673,0.00026,5]
[345440601,1734259840347,-1354.55067164,0.00026,5]
[345441266,1734260020878,184.8624911,0.00024804,2]
[345441268,1734260231299,165.720199,0.00013973,2]
[345441269,1734260247637,161.0,0.00022,2]
[345441270,1734260247818,161.0,0.00023014,2]
[345441272,1734260682145,190.2275898,0.00024887,2]
[345441278,1734260807315,250.0,0.00024877,2]
[345441279,1734260826302,160.605051,0.00024901,2]
[345441280,1734260826517,160.605051,0.00024909,2]
[345441281,1734260827041,160.605051,0.00024916,2]
[345441282,1734260827636,160.605051,0.00024924,2]
[345441283,1734260827785,160.605051,0.00024932,2]
[345441284,1734260827998,160.605051,0.0002494,2]
[345441285,1734260828207,160.605051,0.00024948,2]
[345441286,1734260828405,160.605051,0.00024955,2]
[345441287,1734260828702,160.605051,0.00024963,2]
[345441288,1734260828911,160.605051,0.00024971,2]
[345441289,1734260829113,160.605051,0.00024979,2]
[345441290,1734260829402,160.605051,0.00024986,2]
[345441291,1734260829539,160.605051,0.00024994,2]
[345441294,1734261001376,282.33963638,0.00024902,2]
[345441337,1734261032507,-160.605051,0.00025002,2]
[345441339,1734261032517,-160.605051,0.0002501,2]
[345441341,1734261032526,-160.605051,0.00025018,2]
[345441343,1734261032536,-160.605051,0.00025025,2]
[345441345,1734261032546,-156.81191579,0.00025514,2]
[345441347,1734261032555,-172.3244404,0.00025592,2]
[345441349,1734261032566,-194.42585979,0.00025597,2]
[345441351,1734261032575,-318.4640012,0.00025614,2]
[345441353,1734261032585,-2593.55157965,0.00025656,2]
[345441361,1734261032652,-3889.09464342,0.00025656,2]
[345441613,1734261038531,-522.91217843,0.00025656,2]
[345441615,1734261038540,-200.0,0.00025697,2]
[345441617,1734261038549,-300.0,0.00025758,2]
[345441619,1734261038559,-300.0,0.00025758,2]
[345441621,1734261038568,-583.94452146,0.00025759,2]
[345441639,1734261038737,-1991.69,0.00025759,2]
[345441867,1734261044976,-4110.55040404,0.00025759,2]
[345441869,1734261044986,-3582.77124626,0.00026,5]
[345441871,1734261044995,-64641.82561338,0.0002611,2]
[345441873,1734261045005,-822.78313283,0.0002611,2]
[345441876,1734261045016,-466.53019497,0.0002611,2]
[345441878,1734261045030,-170.03560796,0.00026141,2]
[345441880,1734261045039,-634.08612137,0.0002624,2]
[345441882,1734261045051,-497.5446516,0.00026241,2]
[345441884,1734261045061,-170.03560791,0.00026778,2]
[345441886,1734261045070,-337.66,0.0002707,2]
[345441888,1734261045080,-500.0,0.00027397,7]
[345441890,1734261045089,-500.0,0.00027397,7]
[345441892,1734261045098,-500.0,0.00027397,2]
[345441894,1734261045107,-500.0,0.00027397,7]
[345441896,1734261045117,-500.0,0.00027397,7]
[345441898,1734261045126,-500.0,0.00027397,2]
[345441900,1734261045135,-500.0,0.00027397,7]
[345441902,1734261045144,-500.0,0.00027397,7]
[345441904,1734261045154,-4060.83,0.00027397,2]
[345441906,1734261045163,-500.0,0.00027397,7]
[345441908,1734261045172,-567.82,0.00027397,7]
[345441910,1734261045184,-145.94510169,0.00027397,7]
[345441912,1734261045198,-354.05489831,0.00027397,7]
[345441914,1734261045208,-500.0,0.00027397,7]
[345441916,1734261045218,-406.57161264,0.00027397,7]
[345441919,1734261045233,-93.42838736,0.00027397,7]
[345441921,1734261045243,-613.47,0.00027397,7]
[345441923,1734261045252,-84.00495888,0.00027397,7]
[345441925,1734261045265,-415.99504112,0.00027397,7]
[345441927,1734261045275,-500.0,0.00027397,7]
[345441929,1734261045284,-637.47,0.00027397,7]
[345441931,1734261045293,-500.0,0.00027397,7]
[345441933,1734261045303,-500.0,0.00027397,7]
[345441935,1734261045313,-500.0,0.00027397,7]
[345441937,1734261045322,-500.0,0.00027397,7]
[345441939,1734261045331,-2982.73,0.00027397,2]
[345441941,1734261045340,-170.03560791,0.00027414,2]
[345441943,1734261045349,-1872.49246918,0.00027571,2]
[345441945,1734261045359,-500.0,0.0002767,7]
[345441947,1734261045369,-500.00000004,0.00027671,7]
[345441949,1734261045378,-500.0,0.00027671,2]
[345441951,1734261045388,-500.0,0.00027671,7]
[345441953,1734261045397,-500.0,0.00027671,7]
[345441955,1734261045406,-500.0,0.00027671,2]
[345441957,1734261045416,-500.0,0.00027671,7]
[345441959,1734261045425,-4060.83,0.00027671,2]
[345441961,1734261045434,-500.0,0.00027671,7]
[345441963,1734261045444,-567.82,0.00027671,7]
[345441965,1734261045453,-500.0,0.00027671,7]
[345441967,1734261045471,-500.0,0.00027671,7]
[345441969,1734261045480,-500.0,0.00027671,7]
[345441971,1734261045489,-613.47,0.00027671,7]
[345441973,1734261045499,-500.0,0.00027671,7]
[345441975,1734261045508,-500.0,0.00027671,7]
[345441977,1734261045517,-637.47,0.00027671,7]
[345441979,1734261045526,-500.0,0.00027671,7]
[345441981,1734261045536,-500.0,0.00027671,7]
[345441983,1734261045545,-500.0,0.00027671,7]
[345441985,1734261045555,-500.0,0.00027671,7]
[345441987,1734261045564,-2982.73,0.00027671,2]
[345441989,1734261045574,-1872.49246915,0.00027778,2]
[345441991,1734261045584,-420.0,0.00027882,2]
[345441992,1734261045594,-500.0,0.00027944,7]
[345441993,1734261045604,-500.0,0.00027945,7]
[345441994,1734261045614,-500.0,0.00027945,7]
[345441995,1734261045623,-497.0,0.00027945,2]
[345441996,1734261045632,-500.0,0.00027945,7]
[345441997,1734261045641,-4060.83,0.00027945,2]
[345441998,1734261045650,-500.0,0.00027945,7]
[345441999,1734261045659,-567.82,0.00027945,7]
[345442000,1734261045668,-500.0,0.00027945,7]
[345442001,1734261045677,-500.0,0.00027945,7]
[345442002,1734261045687,-500.0,0.00027945,7]
[345442003,1734261045696,-613.47,0.00027945,7]
[345442004,1734261045707,-500.0,0.00027945,7]
[345442005,1734261045715,-500.0,0.00027945,7]
[345442006,1734261045724,-637.47,0.00027945,7]
[345442007,1734261045734,-500.0,0.00027945,7]
[345442008,1734261045744,-500.0,0.00027945,7]
[345442009,1734261045753,-500.0,0.00027945,7]
[345442010,1734261045762,-500.0,0.00027945,7]
[345442011,1734261045772,-2982.73,0.00027945,2]
[345442012,1734261045781,-1872.49246915,0.00027986,2]
[345442013,1734261045791,-500.0,0.00027999,7]
[345442014,1734261045801,-507.1219587,0.00028,2]
[345442016,1734261045811,-500.0,0.00028,2]
[345442017,1734261045821,-500.0,0.00028,2]
[345442018,1734261045832,-500.0,0.00028,2]
[345442020,1734261045841,-500.0,0.00028,2]
[345442022,1734261045852,-500.0,0.00028,2]
[345442024,1734261045861,-500.0,0.00028,2]
[345442026,1734261045871,-500.0,0.00028,2]
[345442028,1734261045880,-500.0,0.00028,2]
[345442030,1734261045889,-500.0,0.00028,2]
[345442032,1734261045899,-500.0,0.00028,2]
[345442034,1734261045908,-500.0,0.00028,2]
[345442036,1734261045918,-500.0,0.00028,2]
[345442038,1734261045927,-540.47674975,0.00028,2]
[345442040,1734261045936,-500.0,0.00028,2]
[345442042,1734261045946,-500.0,0.00028,2]
[345442044,1734261045955,-500.0,0.00028,2]
[345442046,1734261045965,-500.0,0.00028,2]
[345442048,1734261045974,-500.0,0.00028,2]
[345442050,1734261045983,-500.0,0.00028,2]
[345442052,1734261045992,-801.31263933,0.00028,2]
[345442054,1734261046003,-501.77560431,0.00028016,5]
[345442056,1734261046012,-170.03560791,0.00028051,2]
[345442058,1734261046021,-1872.49246915,0.00028193,2]
[345442060,1734261046031,-151.0,0.000282,14]
[345442062,1734261046040,-151.0,0.000282,12]
[345442064,1734261046049,-500.0,0.00028219,7]
[345442066,1734261046059,-500.0,0.00028219,7]
[345442068,1734261046069,-500.0,0.00028219,7]
[345442070,1734261046078,-4060.83,0.00028219,2]
[345442072,1734261046087,-500.0,0.00028219,7]
[345442074,1734261046097,-567.82,0.00028219,7]
[345442076,1734261046106,-500.0,0.00028219,7]
[345442078,1734261046116,-500.0,0.00028219,7]
[345442080,1734261046125,-500.0,0.00028219,7]
[345442082,1734261046134,-613.47,0.00028219,7]
[345442084,1734261046143,-500.0,0.00028219,7]
[345442086,1734261046154,-500.0,0.00028219,7]
[345442088,1734261046163,-637.47,0.00028219,7]
[345442090,1734261046172,-500.0,0.00028219,7]
[345442092,1734261046182,-500.0,0.00028219,7]
[345442094,1734261046194,-500.0,0.00028219,7]
[345442096,1734261046203,-233.43217892,0.00028219,7]
[345442099,1734261046214,-2982.73,0.00028219,2]
[345442101,1734261046224,-151.0,0.000283,20]
[345442103,1734261046233,-151.0,0.000283,16]
[345442105,1734261046242,-420.0,0.00028333,2]
[345442107,1734261046252,-156.91,0.000284,31]
[345442109,1734261046262,-151.0,0.000284,11]
[345442111,1734261046272,-151.0,0.000284,14]
[345442113,1734261046281,-1872.49246915,0.000284,2]
[345442115,1734261046291,-714.28535836,0.000284,2]
[345442117,1734261046300,-2500.0,0.00028466,3]
[345442119,1734261046310,-500.0,0.00028473,5]
[345442121,1734261046319,-506.11022075,0.00028473,5]
[345442123,1734261046329,-503.08734301,0.00028473,5]
[345442125,1734261046338,-500.0,0.00028473,5]
[345442127,1734261046348,-501.11748658,0.00028473,5]
[345442129,1734261046358,-2500.0,0.00028475,3]
[345442131,1734261046369,-2500.0,0.00028483,3]
[345442133,1734261046379,-500.0,0.00028492,7]
[345442135,1734261046388,-2500.0,0.00028492,3]
[345442137,1734261046398,-500.0,0.00028493,7]
[345442139,1734261046407,-632.66686762,0.00028493,7]
[345442140,1734261046416,-500.0,0.00028493,7]
[345442141,1734261046425,-4060.83,0.00028493,2]
[345442142,1734261046435,-500.0,0.00028493,7]
[345442144,1734261046444,-567.82,0.00028493,7]
[345442146,1734261046453,-500.0,0.00028493,7]
[345442148,1734261046464,-500.0,0.00028493,7]
[345442150,1734261046473,-500.0,0.00028493,7]
[345442152,1734261046483,-613.47,0.00028493,7]
[345442154,1734261046492,-500.0,0.00028493,7]
[345442156,1734261046501,-500.0,0.00028493,7]
[345442158,1734261046511,-637.47,0.00028493,7]
[345442160,1734261046520,-500.0,0.00028493,7]
[345442162,1734261046529,-500.0,0.00028493,7]
[345442164,1734261046538,-500.0,0.00028493,7]
[345442166,1734261046548,-2982.73,0.00028493,2]
[345442168,1734261046557,-377.65075183,0.00028495,2]
[345442170,1734261046566,-500.0,0.00028495,2]
[345442173,1734261046576,-500.0,0.00028495,2]
[345442175,1734261046585,-213.61123809,0.00028495,2]
[345442177,1734261046595,-500.0,0.00028495,2]
[345442178,1734261046604,-500.0,0.00028495,2]
[345442180,1734261046614,-500.0,0.00028495,2]
[345442182,1734261046623,-500.0,0.00028495,2]
[345442184,1734261046632,-500.0,0.00028495,2]
[345442187,1734261046642,-500.0,0.00028495,2]
[345442189,1734261046651,-500.0,0.00028495,2]
[345442191,1734261046661,-500.0,0.00028495,2]
[345442193,1734261046670,-356.10652256,0.00028495,2]
[345442195,1734261046679,-500.0,0.00028495,2]
[345442197,1734261046688,-500.0,0.00028495,2]
[345442198,1734261046697,-500.0,0.00028495,2]
[345442201,1734261046708,-500.0,0.00028495,2]
[345442203,1734261046718,-500.0,0.00028495,2]
[345442205,1734261046728,-500.0,0.00028495,2]
[345442207,1734261046738,-500.0,0.00028495,2]
[345442209,1734261046747,-500.0,0.00028495,2]
[345442211,1734261046757,-500.0,0.00028495,2]
[345442213,1734261046766,-500.0,0.00028495,2]
[345442215,1734261046776,-500.0,0.00028495,2]
[345442217,1734261046785,-500.0,0.00028495,2]
[345442219,1734261046795,-500.0,0.00028495,2]
[345442221,1734261046804,-500.0,0.00028495,2]
[345442223,1734261046814,-500.0,0.00028495,2]
[345442225,1734261046823,-500.0,0.00028495,2]
[345442238,1734261046930,-500.0,0.00028495,2]
[345442240,1734261046941,-500.0,0.00028495,2]
[345442242,1734261046950,-500.0,0.00028495,2]
[345442244,1734261046961,-500.0,0.00028495,2]
[345442246,1734261046970,-500.0,0.00028495,2]
[345442248,1734261046980,-350.0,0.00028495,2]
[345442250,1734261046989,-500.0,0.00028495,2]
[345442252,1734261046999,-500.0,0.00028495,2]
[345442254,1734261047008,-500.0,0.00028495,2]
[345442256,1734261047017,-500.0,0.00028495,2]
[345442258,1734261047027,-500.0,0.00028495,2]
[345442260,1734261047036,-500.0,0.00028495,2]
[345442262,1734261047045,-500.0,0.00028495,2]
[345442264,1734261047054,-500.0,0.00028495,2]
[345442266,1734261047063,-500.0,0.00028495,2]
[345442268,1734261047073,-554.48260885,0.00028495,2]
[345442270,1734261047082,-500.0,0.00028495,2]
[345442272,1734261047091,-500.0,0.00028495,2]
[345442274,1734261047101,-500.0,0.00028495,2]
[345442276,1734261047110,-500.0,0.00028495,2]
[345442278,1734261047120,-500.0,0.00028495,2]
[345442280,1734261047130,-500.0,0.00028495,2]
[345442282,1734261047139,-500.0,0.00028495,2]
[345442284,1734261047149,-500.0,0.00028495,2]
[345442286,1734261047159,-500.0,0.00028495,2]
[345442288,1734261047169,-583.35044683,0.00028495,2]
[345442290,1734261047178,-500.0,0.00028495,2]
[345442292,1734261047192,-500.0,0.00028495,2]
[345442294,1734261047202,-500.0,0.00028495,2]
[345442296,1734261047213,-500.0,0.00028495,2]
[345442298,1734261047222,-500.0,0.00028495,2]
[345442300,1734261047233,-500.0,0.00028495,2]
[345442302,1734261047242,-500.0,0.00028495,2]
[345442304,1734261047252,-500.0,0.00028495,2]
[345442307,1734261047263,-500.0,0.00028495,2]
[345442309,1734261047273,-500.0,0.00028495,2]
[345442311,1734261047283,-500.0,0.00028495,2]
[345442313,1734261047292,-500.0,0.00028495,2]
[345442315,1734261047302,-500.0,0.00028495,2]
[345442317,1734261047311,-500.0,0.00028495,2]
[345442319,1734261047321,-500.0,0.00028495,2]
[345442321,1734261047331,-500.0,0.00028495,2]
[345442323,1734261047341,-500.0,0.00028495,2]
[345442325,1734261047351,-500.0,0.00028495,2]
[345442327,1734261047360,-500.0,0.00028495,2]
[345442329,1734261047370,-500.0,0.00028495,2]
[345442331,1734261047380,-500.0,0.00028495,2]
[345442333,1734261047389,-500.0,0.00028495,2]
[345442335,1734261047399,-500.0,0.00028495,2]
[345442337,1734261047408,-500.0,0.00028495,2]
[345442339,1734261047417,-500.0,0.00028495,2]
[345442341,1734261047427,-500.0,0.00028495,2]
[345442343,1734261047436,-500.0,0.00028495,2]
[345442345,1734261047445,-500.0,0.00028495,2]
[345442347,1734261047455,-500.0,0.00028495,2]
[345442349,1734261047465,-500.0,0.00028495,2]
[345442351,1734261047474,-500.0,0.00028495,2]
[345442353,1734261047483,-500.0,0.00028495,2]
[345442355,1734261047493,-500.0,0.00028495,2]
[345442357,1734261047502,-500.0,0.00028495,2]
[345442359,1734261047512,-500.0,0.00028495,2]
[345442361,1734261047521,-500.0,0.00028495,2]
[345442363,1734261047530,-500.0,0.00028495,2]
[345442365,1734261047539,-562.48871161,0.00028495,2]
[345442367,1734261047548,-500.0,0.00028495,2]
[345442369,1734261047558,-500.0,0.00028495,2]
[345442371,1734261047567,-500.0,0.00028495,2]
[345442373,1734261047576,-500.0,0.00028495,2]
[345442375,1734261047586,-500.0,0.00028495,2]
[345442377,1734261047595,-500.0,0.00028495,2]
[345442379,1734261047605,-500.0,0.00028495,2]
[345442381,1734261047614,-500.0,0.00028495,2]
[345442383,1734261047623,-500.0,0.00028495,2]
[345442385,1734261047633,-500.0,0.00028495,2]
[345442387,1734261047642,-500.0,0.00028495,2]
[345442389,1734261047651,-500.0,0.00028495,2]
[345442391,1734261047661,-500.0,0.00028495,2]
[345442393,1734261047670,-500.0,0.00028495,2]
[345442395,1734261047679,-500.0,0.00028495,2]
[345442397,1734261047688,-500.0,0.00028495,2]
[345442399,1734261047698,-500.0,0.00028495,2]
[345442401,1734261047707,-500.0,0.00028495,2]
[345442403,1734261047717,-500.0,0.00028495,2]
[345442405,1734261047727,-500.0,0.00028495,2]
[345442407,1734261047736,-500.0,0.00028495,2]
[345442409,1734261047745,-500.0,0.00028495,2]
[345442411,1734261047754,-500.0,0.00028495,2]
[345442413,1734261047765,-500.0,0.00028495,2]
[345442415,1734261047775,-500.0,0.00028495,2]
[345442417,1734261047784,-500.0,0.00028495,2]
[345442419,1734261047794,-500.0,0.00028495,2]
[345442421,1734261047803,-500.0,0.00028495,2]
[345442423,1734261047813,-500.0,0.00028495,2]
[345442425,1734261047822,-500.0,0.00028495,2]
[345442427,1734261047832,-500.0,0.00028495,2]
[345442429,1734261047841,-504.96291327,0.00028498,7]
[345442431,1734261047851,-502.76606244,0.00028498,2]
[345442433,1734261047860,-500.0,0.00028499,7]
[345442435,1734261047870,-500.0,0.00028499,7]
[345442437,1734261047880,-500.0,0.00028499,7]
[345442439,1734261047891,-500.0,0.00028499,7]
[345442441,1734261047901,-500.0,0.00028499,7]
[345442444,1734261047910,-500.0,0.00028499,7]
[345442446,1734261047920,-500.0,0.00028499,7]
[345442447,1734261047929,-500.0,0.00028499,7]
[345442449,1734261047938,-500.0,0.00028499,7]
[345442452,1734261047947,-500.0,0.00028499,7]
[345442454,1734261047959,-500.0,0.00028499,7]
[345442456,1734261047969,-500.0,0.00028499,7]
[345442458,1734261047978,-500.0,0.00028499,7]
[345442460,1734261047987,-500.0,0.00028499,7]
[345442462,1734261047997,-500.0,0.00028499,7]
[345442464,1734261048006,-300.02,0.00028499,2]
[345442465,1734261048015,-500.0,0.00028499,2]
[345442467,1734261048024,-322.5616478,0.00028499,2]
[345442470,1734261048034,-332.42514315,0.00028499,2]
[345442472,1734261048044,-522.30597909,0.00028499,2]
[345442474,1734261048054,-1000.0,0.000285,5]
[345442476,1734261048063,-1000.0,0.000285,9]
[345442478,1734261048072,-1000.0,0.000285,14]
[345442480,1734261048082,-18656.63939248,0.000285,2]
[345442482,1734261048091,-13043.86416087,0.000285,2]
[345442913,1734261287899,165.720199,0.00013973,2]
[345442915,1734261346355,203.0,0.00024,2]
[345442917,1734261646679,204.0,0.00025,2]
[345442919,1734262116262,1742.68726161,0.00011,2]
[345442920,1734262117252,32270.23688472,0.0001999,2]
[345442937,1734262232570,-300.0,0.00025198,2]
[345442938,1734262232580,-139.565,0.00025198,2]
[345442939,1734262232776,-160.435,0.00025198,2]
[345442940,1734262232785,-6873.04977751,0.00025199,2]
[345442952,1734262238798,-15384.21869839,0.00025199,2]
[345442954,1734262238808,-10400.1958394,0.00025402,2]
[345442956,1734262238817,-205.522174,0.00025422,2]
[345442958,1734262238831,-5892.3273297,0.00025562,2]
[345442961,1734262238840,-10054.3617715,0.00026144,2]
[345442964,1734262238849,-251.17600504,0.00026373,2]
[345442967,1734262238859,-251.17600502,0.00026387,2]
[345442970,1734262238868,-175.77948386,0.00026399,2]
[345442973,1734262238878,-888.45273779,0.000264,2]
[345442976,1734262238890,-251.17600502,0.000264,2]
[345442979,1734262238899,-152.0,0.00026449,2]
[345442982,1734262238908,-500.0,0.00026473,2]
[345442985,1734262238919,-500.0,0.00026473,2]
[345442988,1734262238928,-500.0,0.00026473,2]
[345442991,1734262238937,-500.0,0.00026473,2]
[345442993,1734262238947,-501.36837931,0.00026473,2]
[345442995,1734262238957,-177.33588526,0.00026473,2]
[345442998,1734262238967,-500.0,0.00026473,2]
[345443000,1734262238976,-191.48132527,0.00026496,13]
[345443002,1734262238986,-500.0,0.00026499,2]
[345443004,1734262238995,-282.97282669,0.00026499,2]
[345443006,1734262239005,-316.80059595,0.00026499,2]
[345443008,1734262239014,-232.6976002,0.00026499,2]
[345443010,1734262239023,-394.87816966,0.00026499,2]
[345443012,1734262239033,-500.0,0.00026499,2]
[345443014,1734262239043,-500.0,0.00026499,2]
[345443016,1734262239053,-500.0,0.00026499,2]
[345443018,1734262239063,-500.0,0.00026499,2]
[345443020,1734262239074,-500.0,0.00026499,2]
[345443022,1734262239083,-500.0,0.00026499,2]
[345443024,1734262239092,-500.0,0.00026499,2]
[345443026,1734262239102,-500.0,0.00026499,2]
[345443028,1734262239111,-567.35327527,0.00026499,2]
[345443030,1734262239121,-500.0,0.00026499,2]
[345443032,1734262239130,-500.0,0.00026499,2]
[345443034,1734262239139,-500.0,0.00026499,2]
[345443036,1734262239148,-500.0,0.00026499,2]
[345443038,1734262239157,-500.0,0.00026499,2]
[345443040,1734262239166,-500.0,0.00026499,2]
[345443042,1734262239175,-500.0,0.00026499,2]
[345443044,1734262239185,-500.0,0.00026499,2]
[345443046,1734262239195,-500.0,0.00026499,2]
[345443048,1734262239204,-500.0,0.00026499,2]
[345443060,1734262239301,-500.0,0.00026499,2]
[345443062,1734262239311,-500.0,0.00026499,2]
[345443064,1734262239322,-500.0,0.00026499,2]
[345443066,1734262239331,-391.35359105,0.00026499,2]
[345443068,1734262239340,-490.22536136,0.00026499,2]
[345443070,1734262239349,-500.0,0.00026499,2]
[345443072,1734262239359,-500.0,0.00026499,2]
[345443074,1734262239368,-500.0,0.00026499,2]
[345443076,1734262239378,-500.0,0.00026499,2]
[345443078,1734262239388,-500.0,0.00026499,2]
[345443080,1734262239398,-500.0,0.00026499,2]
[345443082,1734262239407,-500.0,0.00026499,2]
[345443084,1734262239417,-500.0,0.00026499,2]
[345443086,1734262239426,-500.0,0.00026499,2]
[345443088,1734262239436,-500.0,0.00026499,2]
[345443090,1734262239445,-500.0,0.00026499,2]
[345443092,1734262239454,-500.0,0.00026499,2]
[345443094,1734262239464,-500.0,0.00026499,2]
[345443096,1734262239473,-500.0,0.00026499,2]
[345443098,1734262239482,-500.0,0.00026499,2]
[345443100,1734262239492,-500.0,0.00026499,2]
[345443102,1734262239501,-500.0,0.00026499,2]
[345443104,1734262239510,-500.0,0.00026499,2]
[345443106,1734262239520,-500.0,0.00026499,2]
[345443108,1734262239529,-500.0,0.00026499,2]
[345443110,1734262239539,-500.0,0.00026499,2]
[345443112,1734262239547,-500.0,0.00026499,2]
[345443114,1734262239556,-500.0,0.00026499,2]
[345443116,1734262239566,-500.0,0.00026499,2]
[345443118,1734262239577,-500.0,0.00026499,2]
[345443120,1734262239586,-500.0,0.00026499,2]
[345443122,1734262239595,-500.0,0.00026499,2]
[345443124,1734262239604,-500.0,0.00026499,2]
[345443126,1734262239614,-500.0,0.00026499,2]
[345443129,1734262239623,-500.0,0.00026499,2]
[345443131,1734262239632,-500.0,0.00026499,2]
[345443133,1734262239641,-500.0,0.00026499,2]
[345443135,1734262239650,-500.0,0.00026499,2]
[345443137,1734262239659,-500.0,0.00026499,2]
[345443139,1734262239668,-500.0,0.00026499,2]
[345443141,1734262239677,-500.0,0.00026499,2]
[345443143,1734262239687,-500.0,0.00026499,2]
[345443145,1734262239696,-186.2841071,0.00026499,2]
[345443146,1734262239705,-500.0,0.00026499,2]
[345443148,1734262239714,-500.0,0.00026499,2]
[345443150,1734262239723,-500.0,0.00026499,2]
[345443152,1734262239732,-500.0,0.00026499,2]
[345443154,1734262239742,-500.0,0.00026499,2]
[345443157,1734262239751,-500.0,0.00026499,2]
[345443159,1734262239760,-500.0,0.00026499,2]
[345443160,1734262239769,-500.0,0.00026499,2]
[345443162,1734262239778,-500.0,0.00026499,2]
[345443164,1734262239788,-500.0,0.00026499,2]
[345443166,1734262239798,-500.0,0.00026499,2]
[345443169,1734262239807,-500.0,0.00026499,2]
[345443171,1734262239817,-500.0,0.00026499,2]
[345443173,1734262239828,-500.0,0.00026499,2]
[345443175,1734262239837,-500.0,0.00026499,2]
[345443177,1734262239846,-500.0,0.00026499,2]
[345443179,1734262239855,-500.0,0.00026499,2]
[345443181,1734262239865,-500.0,0.00026499,2]
[345443183,1734262239876,-500.0,0.00026499,2]
[345443185,1734262239889,-500.0,0.00026499,2]
[345443187,1734262239898,-500.0,0.00026499,2]
[345443189,1734262239907,-500.0,0.00026499,2]
[345443191,1734262239916,-500.0,0.00026499,2]
[345443193,1734262239926,-500.0,0.00026499,2]
[345443195,1734262239935,-500.0,0.00026499,2]
[345443197,1734262239944,-500.0,0.00026499,2]
[345443199,1734262239954,-250.0,0.00026499,2]
[345443201,1734262239964,-500.0,0.00026499,2]
[345443203,1734262239973,-500.0,0.00026499,2]
[345443205,1734262239983,-500.0,0.00026499,2]
[345443206,1734262239992,-500.0,0.00026499,2]
[345443209,1734262240001,-228.51184875,0.00026499,2]
[345443211,1734262240011,-500.0,0.00026499,2]
[345443213,1734262240022,-500.0,0.00026499,2]